fUST/lending_fUST_20250924
["ID","MTS","AMOUNT","RATE_DAILY","PERIOD"]
[387360826,1758703848074,-480.0,0.0002114,2]
[387360828,1758703848084,-2075.97,0.0002114,2]
[387360830,1758703848093,-480.0,0.0002114,2]
[387360833,1758703848103,-751.19,0.0002114,2]
[387360834,1758703848112,-788.88,0.0002114,2]
[387360835,1758703848126,-480.0,0.0002114,2]
[387360836,1758703848136,-578.05468445,0.0002114,2]
[387360837,1758703848146,-524.79,0.0002114,2]
[387360838,1758703848156,-480.0,0.0002114,2]
[387360839,1758703848167,-480.0,0.0002114,2]
[387360840,1758703848176,-480.0,0.0002114,2]
[387360841,1758703848186,-348.51974493,0.0002114,2]
[387360842,1758703848196,-480.0,0.0002114,2]
[387360843,1758703848207,-726.48,0.0002114,2]
[387360844,1758703848217,-549.79,0.0002114,2]
[387360845,1758703848226,-480.0,0.0002114,2]
[387360846,1758703848235,-557.31,0.0002114,2]
[387360847,1758703848245,-939.03,0.0002114,2]
[387360848,1758703848256,-480.0,0.0002114,2]
[387360849,1758703848266,-480.0,0.0002114,2]
[387360850,1758703848282,-480.0,0.0002114,2]
[387360851,1758703848293,-480.0,0.0002114,2]
[387360852,1758703848303,-554.52,0.0002114,2]
[387360853,1758703848313,-500.0,0.00021141,2]
[387360854,1758703848322,-480.0,0.00021141,2]
[387360855,1758703848332,-577.3,0.00021141,2]
[387360856,1758703848342,-480.0,0.00021141,2]
[387360857,1758703848351,-210.99006923,0.00021141,2]
[387360858,1758703848361,-480.0,0.00021141,2]
[387360859,1758703848371,-559.43825369,0.00021141,2]
[387360860,1758703848380,-480.0,0.00021141,2]
[387360861,1758703848389,-480.0,0.00021141,2]
[387360862,1758703848398,-285.5080972,0.00021141,2]
[387360863,1758703848408,-613.42053328,0.00021141,2]
[387360864,1758703848417,-480.0,0.00021156,2]
[387360865,1758703848426,-1292.22,0.00021156,2]
[387360866,1758703848435,-653.34,0.00021156,2]
[387360867,1758703848444,-480.0,0.00021156,2]
[387360868,1758703848454,-1769.95,0.00021156,2]
[387360869,1758703848463,-480.0,0.00021156,2]
[387360870,1758703848472,-640.54,0.00021156,2]
[387360871,1758703848482,-570.44,0.00021157,2]
[387360872,1758703848490,-1614.53,0.00021157,2]
[387360873,1758703848499,-2958.7,0.00021157,2]
[387360874,1758703848509,-496.98,0.00021159,2]
[387360875,1758703848520,-405.5850292,0.00021237,2]
[387360876,1758703848529,-480.0,0.00021237,2]
[387360877,1758703848539,-684.92,0.00021237,2]
[387360878,1758703848548,-5816.42,0.00021268,2]
[387360879,1758703848557,-500.94425687,0.00021375,2]
[387360880,1758703848567,-501.11934295,0.00021375,2]
[387360881,1758703848577,-160.0,0.00021383,2]
[387360882,1758703848586,-168.0,0.00021386,2]
[387360883,1758703848596,-228.0,0.00021397,4]
[387360884,1758703848605,-502.30335504,0.000214,2]
[387360885,1758703848614,-500.98096882,0.000214,2]
[387360886,1758703848624,-500.0,0.000214,2]
[387360887,1758703848634,-534.5,0.00021414,2]
[387360888,1758703848643,-480.0,0.00021414,2]
[387360889,1758703848653,-1393.08,0.00021414,2]
[387360890,1758703848663,-480.0,0.00021414,2]
[387360891,1758703848672,-2075.97,0.00021414,2]
[387360892,1758703848682,-480.0,0.00021414,2]
[387360893,1758703848691,-751.19,0.00021414,2]
[387360894,1758703848701,-788.88,0.00021414,2]
[387360895,1758703848710,-480.0,0.00021414,2]
[387360896,1758703848720,-524.79,0.00021414,2]
[387360897,1758703848729,-480.0,0.00021414,2]
[387360898,1758703848739,-564.75039455,0.00021414,2]
[387360899,1758703848749,-480.0,0.00021414,2]
[387360900,1758703848759,-480.0,0.00021414,2]
[387360901,1758703848770,-726.48,0.00021414,2]
[387360902,1758703848779,-549.79,0.00021414,2]
[387360903,1758703848790,-480.0,0.00021414,2]
[387360904,1758703848800,-557.31,0.00021414,2]
[387360905,1758703848811,-939.03,0.00021414,2]
[387360906,1758703848821,-480.0,0.00021414,2]
[387360907,1758703848831,-480.0,0.00021414,2]
[387360908,1758703848840,-554.52,0.00021414,2]
[387360909,1758703848851,-500.0,0.00021415,2]
[387360910,1758703848861,-480.0,0.00021415,2]
[387360911,1758703848871,-577.3,0.00021415,2]
[387360912,1758703848881,-480.0,0.00021415,2]
[387360913,1758703848891,-480.0,0.00021415,2]
[387360914,1758703848901,-480.0,0.00021415,2]
[387360915,1758703848911,-592.2111529,0.00021424,2]
[387360916,1758703848921,-500.0,0.00021424,2]
[387360917,1758703848931,-480.0,0.0002143,2]
[387360918,1758703848941,-1292.22,0.0002143,2]
[387360919,1758703848951,-653.34,0.0002143,2]
[387360920,1758703848960,-480.0,0.0002143,2]
[387360921,1758703848969,-1769.95,0.0002143,2]
[387360922,1758703848979,-480.0,0.0002143,2]
[387360923,1758703848988,-640.54,0.0002143,2]
[387360924,1758703848997,-570.44,0.00021431,2]
[387360925,1758703849008,-1614.53,0.00021431,2]
[387360926,1758703849021,-2958.7,0.00021431,2]
[387360927,1758703849030,-496.98,0.00021433,2]
[387360928,1758703849040,-500.0,0.00021489,2]
[387360929,1758703849049,-500.0,0.00021489,2]
[387360930,1758703849059,-500.0,0.00021489,2]
[387360931,1758703849069,-684.92,0.00021511,2]
[387360932,1758703849078,-501.32307387,0.00021511,2]
[387360933,1758703849088,-500.0,0.00021511,2]
[387360934,1758703849098,-500.0,0.00021511,2]
[387360935,1758703849107,-479.85179182,0.00021511,2]
[387360936,1758703849119,-501.56478208,0.00021511,2]
[387360937,1758703849130,-9473.44246715,0.00021522,2]
[387360938,1758703849310,-1093.19583013,0.00021522,2]
[387360939,1758703849320,-500.0,0.00021575,2]
[387360940,1758703849330,-521.20630445,0.00021588,2]
[387360941,1758703849340,-2000.0,0.00021604,2]
[387360942,1758703849350,-500.0,0.00021661,2]
[387360943,1758703849360,-500.0,0.00021661,2]
[387360944,1758703849370,-500.0,0.00021661,2]
[387360945,1758703849380,-500.0,0.00021661,2]
[387360946,1758703849390,-500.0,0.00021674,2]
[387360947,1758703849399,-1393.08,0.00021688,2]
[387360948,1758703849409,-480.0,0.00021688,2]
[387360949,1758703849418,-2075.97,0.00021688,2]
[387360950,1758703849428,-480.0,0.00021688,2]
[387360951,1758703849437,-751.19,0.00021688,2]
[387360952,1758703849448,-788.88,0.00021688,2]
[387360953,1758703849458,-480.0,0.00021688,2]
[387360954,1758703849468,-524.79,0.00021688,2]
[387360955,1758703849480,-480.0,0.00021688,2]
[387360956,1758703849497,-480.0,0.00021688,2]
[387360957,1758703849506,-480.0,0.00021688,2]
[387360958,1758703849518,-726.48,0.00021688,2]
[387360959,1758703849527,-549.79,0.00021688,2]
[387360960,1758703849537,-480.0,0.00021688,2]
[387360961,1758703849547,-557.31,0.00021688,2]
[387360962,1758703849557,-939.03,0.00021688,2]
[387360963,1758703849567,-480.0,0.00021688,2]
[387360964,1758703849576,-241.4019095,0.00021688,2]
[387360965,1758703849586,-554.52,0.00021688,2]
[387360966,1758703849596,-500.0,0.00021689,2]
[387360967,1758703849605,-480.0,0.00021689,2]
[387360968,1758703849615,-577.3,0.00021689,2]
[387360969,1758703849624,-480.0,0.00021689,2]
[387360970,1758703849634,-480.0,0.00021689,2]
[387360971,1758703849644,-480.0,0.00021704,2]
[387360972,1758703849653,-1292.22,0.00021704,2]
[387360973,1758703849663,-653.34,0.00021704,2]
[387360974,1758703849672,-1769.95,0.00021704,2]
[387360975,1758703849682,-480.0,0.00021704,2]
[387360976,1758703849691,-640.54,0.00021704,2]
[387360977,1758703849702,-570.44,0.00021705,2]
[387360978,1758703849711,-1614.53,0.00021705,2]
[387360979,1758703849720,-2958.7,0.00021705,2]
[387360980,1758703849730,-496.98,0.00021707,2]
[387360981,1758703849740,-684.92,0.00021785,2]
[387360982,1758703849749,-1654.2811031,0.00021794,2]
[387360983,1758703849759,-169.154,0.00021803,2]
[387360984,1758703849774,-151.0,0.00021918,2]
[387360985,1758703849783,-151.0,0.00021918,2]
[387360986,1758703849793,-151.0,0.00021918,2]
[387360987,1758703849804,-151.0,0.00021918,2]
[387360988,1758703849813,-151.0,0.00021918,2]
[387360989,1758703849822,-195.32612,0.00021918,2]
[387360990,1758703849832,-151.0,0.00021918,2]
[387360991,1758703849841,-260.0,0.00021931,2]
[387360992,1758703849851,-1393.08,0.00021962,2]
[387360993,1758703849860,-480.0,0.00021962,2]
[387360994,1758703849870,-2075.97,0.00021962,2]
[387360995,1758703849879,-480.0,0.00021962,2]
[387360996,1758703849889,-751.19,0.00021962,2]
[387360997,1758703849898,-788.88,0.00021962,2]
[387360998,1758703849908,-480.0,0.00021962,2]
[387360999,1758703849917,-524.79,0.00021962,2]
[387361000,1758703849927,-480.0,0.00021962,2]
[387361001,1758703849936,-480.0,0.00021962,2]
[387361002,1758703849946,-480.0,0.00021962,2]
[387361003,1758703849956,-726.48,0.00021962,2]
[387361004,1758703849965,-23.20149389,0.00021962,2]
[387361005,1758703849981,-526.58850611,0.00021962,2]
[387361006,1758703849992,-480.0,0.00021962,2]
[387361007,1758703850002,-557.31,0.00021962,2]
[387361008,1758703850012,-939.03,0.00021962,2]
[387361009,1758703850021,-480.0,0.00021962,2]
[387361010,1758703850031,-554.52,0.00021962,2]
[387361011,1758703850041,-160.0,0.00021962,2]
[387361012,1758703850051,-160.0,0.00021962,2]
[387361013,1758703850061,-160.0,0.00021962,2]
[387361014,1758703850071,-532.2324375,0.00021962,2]
[387361015,1758703850080,-233.62170814,0.00021962,2]
[387361016,1758703850090,-160.0,0.00021962,2]
[387361017,1758703850100,-160.0,0.00021962,2]
[387361018,1758703850109,-160.0,0.00021962,2]
[387361019,1758703850122,-417.15472785,0.00021962,2]
[387361020,1758703850132,-500.0,0.00021963,2]
[387361021,1758703850141,-480.0,0.00021963,2]
[387361022,1758703850152,-577.3,0.00021963,2]
[387361023,1758703850162,-480.0,0.00021963,2]
[387361024,1758703850172,-480.0,0.00021963,2]
[387361025,1758703850181,-1000.0,0.00021971,2]
[387361026,1758703850191,-480.0,0.00021978,2]
[387361027,1758703850201,-1292.22,0.00021978,2]
[387361028,1758703850211,-653.34,0.00021978,2]
[387361029,1758703850220,-1769.95,0.00021978,2]
[387361031,1758703850230,-480.0,0.00021978,2]
[387361033,1758703850239,-640.54,0.00021978,2]
[387361035,1758703850248,-570.44,0.00021979,2]
[387361037,1758703850257,-1614.53,0.00021979,2]
[387361039,1758703850267,-2958.7,0.00021979,2]
[387361041,1758703850276,-496.98,0.00021981,2]
[387361043,1758703850286,-3462.5694188,0.00022,2]
[387361045,1758703850295,-162.0,0.00022,2]
[387361047,1758703850305,-176.47,0.00022,2]
[387361049,1758703850314,-168.0,0.00022021,2]
[387361051,1758703850323,-928.31183169,0.00022034,2]
[387361053,1758703850332,-1000.0,0.00022037,2]
[387361055,1758703850342,-1000.0,0.00022037,2]
[387361057,1758703850351,-1000.0,0.00022037,2]
[387361059,1758703850361,-2235.83914667,0.00022044,2]
[387361061,1758703850370,-684.92,0.00022059,2]
[387361063,1758703850379,-1000.0,0.00022059,2]
[387361065,1758703850388,-660.46673934,0.00022059,2]
[387361067,1758703850402,-343.87471645,0.00022059,2]
[387361069,1758703850412,-168.0,0.00022137,2]
[387361071,1758703850421,-212.0,0.00022139,2]
[387361073,1758703850430,-500.0,0.00022152,2]
[387361075,1758703850440,-151.0,0.00022192,2]
[387361077,1758703850449,-7755.23,0.00022193,2]
[387361079,1758703850458,-250.0,0.00022201,2]
[387361081,1758703850468,-1000.0,0.00022209,2]
[387361083,1758703850478,-1000.0,0.00022209,2]
[387361085,1758703850487,-1016.87922876,0.00022209,2]
[387361087,1758703850497,-1002.24535854,0.00022209,2]
[387361089,1758703850506,-631.97556488,0.00022222,2]
[387361091,1758703850516,-1393.08,0.00022236,2]
[387361093,1758703850525,-480.0,0.00022236,2]
[387361095,1758703850535,-2075.97,0.00022236,2]
[387361097,1758703850545,-480.0,0.00022236,2]
[387361099,1758703850555,-751.19,0.00022236,2]
[387361101,1758703850565,-788.88,0.00022236,2]
[387361103,1758703850574,-480.0,0.00022236,2]
[387361105,1758703850584,-524.79,0.00022236,2]
[387361107,1758703850593,-480.0,0.00022236,2]
[387361109,1758703850602,-314.88512499,0.00022236,2]
[387361112,1758703850616,-165.11487501,0.00022236,2]
[387361114,1758703850626,-480.0,0.00022236,2]
[387361116,1758703850635,-726.48,0.00022236,2]
[387361118,1758703850645,-549.79,0.00022236,2]
[387361120,1758703850655,-480.0,0.00022236,2]
[387361122,1758703850664,-557.31,0.00022236,2]
[387361124,1758703850673,-939.03,0.00022236,2]
[387361132,1758703850743,-480.0,0.00022236,2]
[387361134,1758703850753,-554.52,0.00022236,2]
[387361137,1758703850765,-500.0,0.00022237,2]
[387361139,1758703850774,-480.0,0.00022237,2]
[387361140,1758703850784,-577.3,0.00022237,2]
[387361142,1758703850795,-480.0,0.00022237,2]
[387361144,1758703850804,-480.0,0.00022237,2]
[387361146,1758703850814,-480.0,0.00022252,2]
[387361148,1758703850823,-1292.22,0.00022252,2]
[387361150,1758703850833,-653.34,0.00022252,2]
[387361152,1758703850843,-1769.95,0.00022252,2]
[387361154,1758703850852,-160.4866075,0.00022252,2]
[387361158,1758703850871,-319.5133925,0.00022252,2]
[387361160,1758703850882,-640.54,0.00022252,2]
[387361162,1758703850891,-570.44,0.00022253,2]
[387361164,1758703850902,-1614.53,0.00022253,2]
[387361166,1758703850911,-2667.14119388,0.00022253,2]
[387361198,1758703851218,-151.0,0.00019223,2]
[387361200,1758703851227,-291.55880612,0.00022253,2]
[387361202,1758703851236,-496.98,0.00022255,2]
[387361204,1758703851245,-684.92,0.00022333,2]
[387361206,1758703851254,-369.1200074,0.00022343,2]
[387361208,1758703851265,-500.0,0.00022369,2]
[387361210,1758703851275,-198.0,0.00022466,2]
[387361212,1758703851284,-168.0,0.00022472,2]
[387361214,1758703851295,-360.0,0.00022479,2]
[387361216,1758703851304,-500.0,0.00022484,2]
[387361217,1758703851313,-1393.08,0.0002251,2]
[387361219,1758703851322,-480.0,0.0002251,2]
[387361221,1758703851331,-2075.97,0.0002251,2]
[387361223,1758703851341,-480.0,0.0002251,2]
[387361225,1758703851350,-751.19,0.0002251,2]
[387361227,1758703851359,-788.88,0.0002251,2]
[387361229,1758703851368,-439.25270847,0.0002251,2]
[387361231,1758703851378,-502.42749669,0.0002251,2]
[387361234,1758703851395,-22.36250331,0.0002251,2]
[387361236,1758703851405,-480.0,0.0002251,2]
[387361238,1758703851414,-480.0,0.0002251,2]
[387361240,1758703851424,-480.0,0.0002251,2]
[387361242,1758703851433,-726.48,0.0002251,2]
[387361244,1758703851443,-549.79,0.0002251,2]
[387361246,1758703851453,-380.55,0.0002251,2]
[387361248,1758703851463,-557.31,0.0002251,2]
[387361250,1758703851472,-939.03,0.0002251,2]
[387361252,1758703851481,-480.0,0.0002251,2]
[387361254,1758703851491,-554.52,0.0002251,2]
[387361256,1758703851501,-520.53521109,0.00022511,2]
[387361258,1758703851511,-480.0,0.00022511,2]
[387361260,1758703851522,-577.3,0.00022511,2]
[387361262,1758703851531,-480.0,0.00022511,2]
[387361264,1758703851540,-480.0,0.00022511,2]
[387361266,1758703851550,-1292.22,0.00022526,2]
[387361268,1758703851559,-653.34,0.00022526,2]
[387361270,1758703851568,-1769.95,0.00022526,2]
[387361272,1758703851577,-480.0,0.00022526,2]
[387361273,1758703851586,-640.54,0.00022526,2]
[387361274,1758703851595,-1614.53,0.00022527,2]
[387361275,1758703851605,-2958.7,0.00022527,2]
[387361276,1758703851614,-496.98,0.00022529,2]
[387361277,1758703851623,-221.61069034,0.00022575,2]
[387361278,1758703851632,-1500.0,0.00022585,2]
[387361279,1758703851641,-1005.37081843,0.00022585,2]
[387361280,1758703851650,-1500.0,0.00022585,2]
[387361281,1758703851659,-684.92,0.00022607,2]
[387361282,1758703851668,-1500.0,0.00022607,2]
[387361283,1758703851677,-151.0,0.000227,7]
[387361284,1758703851686,-656.44911486,0.00022736,2]
[387361285,1758703851695,-1500.0,0.00022757,2]
[387361286,1758703851705,-1393.08,0.00022784,2]
[387361287,1758703851714,-480.0,0.00022784,2]
[387361288,1758703851723,-2075.97,0.00022784,2]
[387361289,1758703851732,-480.0,0.00022784,2]
[387361290,1758703851741,-751.19,0.00022784,2]
[387361291,1758703851749,-788.88,0.00022784,2]
[387361292,1758703851758,-524.79,0.00022784,2]
[387361293,1758703851768,-480.0,0.00022784,2]
[387361294,1758703851777,-251.54182051,0.00022784,2]
[387361295,1758703851786,-480.0,0.00022784,2]
[387361296,1758703851795,-726.48,0.00022784,2]
[387361297,1758703851804,-549.79,0.00022784,2]
[387361298,1758703851813,-557.31,0.00022784,2]
[387361299,1758703851822,-939.03,0.00022784,2]
[387361300,1758703851831,-480.0,0.00022784,2]
[387361301,1758703851840,-554.52,0.00022784,2]
[387361302,1758703851849,-461.2,0.00022785,2]
[387361303,1758703851859,-577.3,0.00022785,2]
[387361304,1758703851867,-480.0,0.00022785,2]
[387361305,1758703851876,-480.0,0.00022785,2]
[387361306,1758703851885,-1292.22,0.000228,2]
[387361307,1758703851894,-653.34,0.000228,2]
[387361308,1758703851903,-1769.95,0.000228,2]
[387361309,1758703851914,-480.0,0.000228,2]
[387361310,1758703851923,-640.54,0.000228,2]
[387361311,1758703851932,-1614.53,0.00022801,2]
[387361312,1758703851941,-2958.7,0.00022801,2]
[387361313,1758703851950,-496.98,0.00022803,2]
[387361314,1758703851959,-500.0,0.00022805,2]
[387361315,1758703851969,-587.0,0.00022825,2]
[387361316,1758703851979,-500.0,0.00022879,2]
[387361317,1758703851988,-684.92,0.00022881,2]
[387361323,1758703852058,-704.95323766,0.00022908,2]
[387361325,1758703852068,-501.03452152,0.00022927,2]
[387361327,1758703852077,-500.0,0.00022954,2]
[387361329,1758703852087,-500.0,0.0002296,2]
[387361332,1758703852097,-168.0,0.00022966,2]
[387361333,1758703852107,-160.0,0.00023,2]
[387361335,1758703852117,-176.47,0.00023,2]
[387361337,1758703852130,-460.0,0.00023027,2]
[387361339,1758703852139,-1393.08,0.00023058,2]
[387361341,1758703852149,-480.0,0.00023058,2]
[387361343,1758703852158,-2075.97,0.00023058,2]
[387361345,1758703852169,-480.0,0.00023058,2]
[387361347,1758703852179,-751.19,0.00023058,2]
[387361350,1758703852188,-788.88,0.00023058,2]
[387361352,1758703852199,-524.79,0.00023058,2]
[387361354,1758703852208,-480.0,0.00023058,2]
[387361356,1758703852218,-480.0,0.00023058,2]
[387361358,1758703852227,-726.48,0.00023058,2]
[387361360,1758703852238,-549.79,0.00023058,2]
[387361362,1758703852247,-557.31,0.00023058,2]
[387361364,1758703852256,-939.03,0.00023058,2]
[387361366,1758703852266,-480.0,0.00023058,2]
[387361368,1758703852275,-554.52,0.00023058,2]
[387361370,1758703852285,-577.3,0.00023059,2]
[387361372,1758703852294,-480.0,0.00023059,2]
[387361373,1758703852303,-480.0,0.00023059,2]
[387361376,1758703852314,-201.0,0.00023062,2]
[387361378,1758703852323,-1292.22,0.00023074,2]
[387361380,1758703852332,-653.34,0.00023074,2]
[387361381,1758703852341,-1769.95,0.00023074,2]
[387361383,1758703852351,-480.0,0.00023074,2]
[387361385,1758703852360,-640.54,0.00023074,2]
[387361387,1758703852369,-1614.53,0.00023075,2]
[387361389,1758703852378,-2958.7,0.00023075,2]
[387361391,1758703852387,-496.98,0.00023077,2]
[387361393,1758703852397,-151.0,0.000231,7]
[387361395,1758703852406,-2235.83914667,0.00023116,2]
[387361397,1758703852415,-9694.03,0.00023118,2]
[387361399,1758703852425,-2000.0,0.00023133,2]
[387361401,1758703852435,-500.0,0.00023133,2]
[387361403,1758703852444,-177.03570753,0.00023137,2]
[387361405,1758703852453,-3262.0,0.00023153,2]
[387361407,1758703852462,-2000.0,0.00023155,2]
[387361409,1758703852472,-684.92,0.00023155,2]
[387361411,1758703852481,-168.0,0.00023168,2]
[387361413,1758703852490,-42018.20182922,0.0002322,2]
[387361418,1758703852522,-568.34093676,0.0002322,2]
[387361426,1758703852595,-1938.392014,0.0002322,2]
[387361429,1758703852607,-7947.3074374,0.0002322,2]
[387361431,1758703852618,-103530.38879398,0.0002322,2]
[387361598,1758704879877,178.81,0.00015984,2]
[387361599,1758704882501,390.0,0.00027397,120]
[387361621,1758705032705,-681.7557667,0.00018114,2]
[387361622,1758705032715,-26.23794322,0.00018122,2]
[387361657,1758705038433,-249.01729698,0.00018122,2]
[387361659,1758705038442,-187.1839781,0.00018222,2]
[387361661,1758705038452,-380.6989858,0.0001825,2]
[387361663,1758705038461,-222.59135015,0.00018914,2]
[387361665,1758705038471,-160.0,0.00018989,2]
[387361667,1758705038480,-25.09447339,0.00019121,2]
[387361884,1758705040471,-671.13940043,0.00019121,2]
[387361886,1758705040480,-300.0,0.00019218,2]
[387361888,1758705040490,-877.0,0.00019218,2]
[387361890,1758705040499,-1044.69434064,0.00019219,2]
[387361892,1758705040509,-462.402542,0.00019219,2]
[387361895,1758705040519,-480.0,0.00019219,2]
[387361897,1758705040528,-480.0,0.00019219,2]
[387361899,1758705040537,-460.05448545,0.00019219,2]
[387361901,1758705040549,-19.94551455,0.00019219,2]
[387361903,1758705040558,-480.0,0.00019219,2]
[387361905,1758705040568,-480.0,0.00019219,2]
[387361907,1758705040577,-483.84681797,0.00019219,2]
[387361909,1758705040586,-72.59220541,0.00019219,2]
[387361911,1758705040598,-407.40779459,0.00019219,2]
[387361913,1758705040611,-397.62585119,0.0001922,2]
[387366125,1758706232698,-184.996614,0.0001822,2]
[387366127,1758706232708,-160.0,0.00019023,2]
[387366128,1758706232717,-1015.26090506,0.00019118,2]
[387366130,1758706232726,-300.0,0.00019216,2]
[387366132,1758706232735,-480.0,0.00019217,2]
[387366134,1758706232744,-480.0,0.00019217,2]
[387366136,1758706232754,-480.0,0.00019217,2]
[387366139,1758706232763,-480.0,0.00019217,2]
[387366140,1758706232772,-515.63,0.00019217,2]
[387366143,1758706232782,-1440.38553869,0.00019218,2]
[387366147,1758706232791,-480.0,0.00019218,2]
[387366148,1758706232801,-480.0,0.00019218,2]
[387366149,1758706232810,-480.0,0.00019218,2]
[387366150,1758706232820,-480.0,0.00019218,2]
[387366152,1758706232829,-480.0,0.00019218,2]
[387366157,1758706232930,-480.0,0.00019218,2]
[387366158,1758706232946,-480.0,0.00019218,2]
[387366159,1758706232955,-480.0,0.00019218,2]
[387366160,1758706232964,-480.0,0.00019218,2]
[387366161,1758706232974,-480.0,0.00019218,2]
[387366162,1758706232983,-480.0,0.00019218,2]
[387366163,1758706232992,-480.0,0.00019218,2]
[387366164,1758706233002,-480.0,0.00019218,2]
[387366165,1758706233011,-480.0,0.00019218,2]
[387366166,1758706233021,-480.0,0.00019218,2]
[387366167,1758706233030,-480.0,0.00019218,2]
[387366168,1758706233039,-1555.30008562,0.00019218,2]
[387366169,1758706233052,-275.97991438,0.00019218,2]
[387366170,1758706233061,-480.0,0.00019218,2]
[387366171,1758706233071,-480.0,0.00019218,2]
[387366172,1758706233081,-480.0,0.00019218,2]
[387366173,1758706233090,-480.0,0.00019218,2]
[387366174,1758706233100,-480.0,0.00019218,2]
[387366175,1758706233110,-480.0,0.00019218,2]
[387366176,1758706233120,-480.0,0.00019218,2]
[387366177,1758706233129,-692.63,0.00019218,2]
[387366178,1758706233139,-480.0,0.00019218,2]
[387366179,1758706233148,-480.0,0.00019218,2]
[387366180,1758706233157,-480.0,0.00019218,2]
[387366181,1758706233166,-480.0,0.00019218,2]
[387366182,1758706233176,-713.34,0.00019218,2]
[387366183,1758706233185,-480.0,0.00019218,2]
[387366184,1758706233194,-480.0,0.00019218,2]
[387366185,1758706233203,-480.0,0.00019218,2]
[387366186,1758706233212,-480.0,0.00019218,2]
[387366187,1758706233221,-480.0,0.00019218,2]
[387366188,1758706233231,-480.0,0.00019218,2]
[387366189,1758706233240,-480.0,0.00019218,2]
[387366190,1758706233249,-480.0,0.00019218,2]
[387366191,1758706233258,-480.0,0.00019218,2]
[387366192,1758706233267,-480.0,0.00019218,2]
[387366193,1758706233276,-480.0,0.00019218,2]
[387366194,1758706233286,-480.0,0.00019218,2]
[387366195,1758706233295,-480.0,0.00019218,2]
[387366196,1758706233304,-480.0,0.00019218,2]
[387366197,1758706233313,-324.32020246,0.00019218,2]
[387366198,1758706233323,-480.0,0.00019218,2]
[387366199,1758706233332,-480.0,0.00019218,2]
[387366200,1758706233342,-480.0,0.00019218,2]
[387366201,1758706233352,-480.0,0.00019218,2]
[387366202,1758706233361,-480.0,0.00019218,2]
[387366203,1758706233371,-480.0,0.00019218,2]
[387366204,1758706233380,-480.0,0.00019218,2]
[387366205,1758706233390,-480.0,0.00019218,2]
[387366206,1758706233399,-480.0,0.00019218,2]
[387366207,1758706233409,-480.0,0.00019218,2]
[387366208,1758706233418,-480.0,0.00019218,2]
[387366209,1758706233428,-480.0,0.00019218,2]
[387366210,1758706233438,-480.0,0.00019218,2]
[387366211,1758706233447,-494.79,0.00019218,2]
[387366212,1758706233457,-480.0,0.00019218,2]
[387366213,1758706233467,-480.0,0.00019218,2]
[387366214,1758706233476,-485.72247924,0.00019218,2]
[387366215,1758706233486,-495.00233162,0.00019218,2]
[387366216,1758706233495,-480.0,0.00019218,2]
[387366217,1758706233504,-480.0,0.00019218,2]
[387366218,1758706233514,-480.0,0.00019218,2]
[387366219,1758706233528,-480.0,0.00019218,2]